fUSD/lending_fUSD_20240804
["ID","MTS","AMOUNT","RATE_DAILY","PERIOD"]
[334126978,1722789085083,-500.0,0.00023095,9]
[334126979,1722789085093,-500.0,0.00023095,9]
[334126980,1722789085102,-500.0,0.00023095,9]
[334126981,1722789085111,-500.0,0.00023095,9]
[334126982,1722789085120,-500.0,0.00023095,9]
[334126983,1722789085130,-187.72684767,0.00023095,9]
[334126984,1722789085139,-500.0,0.00023095,9]
[334126985,1722789085149,-529.40115306,0.00023095,9]
[334126986,1722789085160,-558.03,0.00023095,9]
[334126987,1722789085173,-500.0,0.00023095,9]
[334126988,1722789085183,-500.0,0.00023095,9]
[334126989,1722789085192,-500.0,0.00023095,9]
[334126990,1722789085202,-864.98,0.00023095,9]
[334126991,1722789085211,-510.16,0.00023095,9]
[334126992,1722789085221,-563.62569798,0.00023095,9]
[334126993,1722789085230,-522.61,0.00023095,9]
[334126994,1722789085240,-500.0,0.00023095,9]
[334126995,1722789085251,-1944.23,0.00023095,9]
[334126996,1722789085260,-500.0,0.00023095,9]
[334126997,1722789085270,-500.0,0.00023095,9]
[334126998,1722789085286,-500.0,0.00023095,9]
[334126999,1722789085295,-500.0,0.00023095,9]
[334127000,1722789085305,-500.0,0.00023095,9]
[334127001,1722789085314,-500.0,0.00023095,9]
[334127002,1722789085323,-500.0,0.00023095,9]
[334127003,1722789085332,-500.0,0.00023095,9]
[334127004,1722789085342,-500.0,0.00023095,9]
[334127005,1722789085351,-500.0,0.00023095,9]
[334127006,1722789085361,-500.0,0.00023095,9]
[334127007,1722789085370,-500.0,0.00023095,9]
[334127008,1722789085381,-500.0,0.00023095,9]
[334127009,1722789085391,-500.0,0.00023095,9]
[334127010,1722789085400,-197.5882983,0.00023095,9]
[334127011,1722789085410,-500.0,0.00023095,9]
[334127012,1722789085419,-500.0,0.00023095,9]
[334127013,1722789085429,-500.0,0.00023095,9]
[334127014,1722789085439,-500.0,0.00023095,9]
[334127015,1722789085448,-500.0,0.00023095,9]
[334127016,1722789085458,-500.0,0.00023095,9]
[334127017,1722789085468,-500.0,0.00023095,9]
[334127018,1722789085478,-500.0,0.00023095,9]
[334127019,1722789085488,-500.0,0.00023095,9]
[334127020,1722789085497,-500.0,0.00023095,9]
[334127021,1722789085507,-500.0,0.00023095,9]
[334127022,1722789085516,-500.0,0.00023095,9]
[334127023,1722789085529,-500.0,0.00023095,9]
[334127024,1722789085539,-500.0,0.00023095,9]
[334127025,1722789085548,-500.0,0.00023095,9]
[334127026,1722789085557,-500.0,0.00023095,9]
[334127027,1722789085567,-500.0,0.00023095,9]
[334127028,1722789085576,-500.0,0.00023095,9]
[334127029,1722789085585,-500.0,0.00023095,9]
[334127030,1722789085595,-500.0,0.00023095,2]
[334127031,1722789085606,-500.0,0.00023095,9]
[334127032,1722789085616,-500.0,0.00023095,9]
[334127033,1722789085626,-500.0,0.00023095,9]
[334127034,1722789085636,-500.0,0.00023095,9]
[334127035,1722789085647,-500.0,0.00023095,9]
[334127036,1722789085659,-546.11,0.00023095,9]
[334127037,1722789085668,-500.0,0.00023095,9]
[334127038,1722789085678,-500.0,0.00023095,9]
[334127039,1722789085687,-500.0,0.00023095,9]
[334127040,1722789085697,-500.0,0.00023095,9]
[334127041,1722789085706,-500.0,0.00023095,9]
[334127042,1722789085715,-500.0,0.00023095,9]
[334127043,1722789085724,-500.0,0.00023095,9]
[334127044,1722789085735,-500.0,0.00023095,9]
[334127045,1722789085744,-500.0,0.00023095,9]
[334127046,1722789085753,-500.0,0.00023095,9]
[334127047,1722789085762,-226.94,0.00023095,9]
[334127048,1722789085774,-500.0,0.00023095,9]
[334127049,1722789085783,-500.0,0.00023095,9]
[334127050,1722789085793,-544.54,0.00023095,9]
[334127051,1722789085812,-500.0,0.00023095,9]
[334127052,1722789085823,-500.0,0.00023095,9]
[334127053,1722789085833,-500.0,0.00023095,9]
[334127054,1722789085843,-500.0,0.00023095,9]
[334127055,1722789085853,-500.0,0.00023095,9]
[334127056,1722789085863,-500.0,0.00023095,9]
[334127057,1722789085872,-500.0,0.00023095,9]
[334127058,1722789085882,-500.0,0.00023095,9]
[334127059,1722789085891,-500.0,0.00023095,9]
[334127060,1722789085901,-500.0,0.00023095,9]
[334127061,1722789085911,-500.0,0.00023095,9]
[334127062,1722789085921,-500.0,0.00023095,9]
[334127063,1722789085931,-500.0,0.00023095,9]
[334127064,1722789085940,-500.0,0.00023095,9]
[334127065,1722789085950,-500.0,0.00023095,9]
[334127066,1722789085961,-293.00587988,0.00023095,9]
[334127067,1722789085970,-500.0,0.00023095,9]
[334127068,1722789085980,-500.0,0.00023095,9]
[334127069,1722789085989,-500.0,0.00023095,9]
[334127070,1722789085999,-500.0,0.00023095,9]
[334127071,1722789086009,-151.0,0.00023095,7]
[334127072,1722789086019,-500.0,0.00023095,9]
[334127073,1722789086034,-500.0,0.00023095,9]
[334127074,1722789086048,-500.0,0.00023095,9]
[334127075,1722789086058,-500.0,0.00023095,9]
[334127076,1722789086067,-606.8,0.00023095,9]
[334127077,1722789086077,-500.0,0.00023095,9]
[334127078,1722789086086,-500.0,0.00023095,9]
[334127079,1722789086096,-500.0,0.00023095,9]
[334127080,1722789086105,-500.0,0.00023095,9]
[334127081,1722789086115,-593.44,0.00023095,9]
[334127082,1722789086124,-500.0,0.00023095,9]
[334127083,1722789086134,-500.0,0.00023095,9]
[334127084,1722789086144,-500.0,0.00023095,9]
[334127085,1722789086154,-500.0,0.00023095,9]
[334127086,1722789086163,-500.0,0.00023095,9]
[334127087,1722789086176,-500.0,0.00023095,9]
[334127088,1722789086185,-500.0,0.00023095,9]
[334127089,1722789086195,-500.0,0.00023095,9]
[334127090,1722789086205,-607.33,0.00023095,9]
[334127091,1722789086215,-500.0,0.00023095,9]
[334127092,1722789086224,-500.0,0.00023095,9]
[334127093,1722789086233,-500.0,0.00023095,9]
[334127094,1722789086244,-500.0,0.00023095,9]
[334127095,1722789086253,-500.0,0.00023095,9]
[334127096,1722789086263,-500.0,0.00023095,9]
[334127097,1722789086278,-500.0,0.00023095,9]
[334127098,1722789086287,-500.0,0.00023095,9]
[334127099,1722789086297,-500.0,0.00023095,9]
[334127100,1722789086306,-201.08888885,0.00023095,9]
[334127101,1722789086317,-500.0,0.00023095,9]
[334127102,1722789086327,-500.0,0.00023095,9]
[334127103,1722789086337,-500.0,0.00023095,9]
[334127104,1722789086348,-500.0,0.00023095,9]
[334127105,1722789086358,-500.0,0.00023095,9]
[334127106,1722789086367,-500.0,0.00023095,9]
[334127107,1722789086377,-500.0,0.00023095,9]
[334127108,1722789086386,-500.0,0.00023095,9]
[334127109,1722789086396,-500.0,0.00023095,9]
[334127110,1722789086406,-429.95,0.00023095,9]
[334127111,1722789086415,-500.0,0.00023095,9]
[334127112,1722789086425,-500.0,0.00023095,9]
[334127113,1722789086435,-430.8,0.00023095,9]
[334127114,1722789086444,-500.0,0.00023095,9]
[334127115,1722789086455,-500.0,0.00023095,9]
[334127116,1722789086463,-346.05344695,0.00023095,9]
[334127117,1722789086473,-376.94,0.00023095,9]
[334127118,1722789086483,-632.77,0.00023095,9]
[334127119,1722789086492,-500.0,0.00023095,9]
[334127120,1722789086501,-500.0,0.00023095,9]
[334127121,1722789086511,-500.0,0.00023095,9]
[334127122,1722789086520,-500.0,0.00023095,9]
[334127123,1722789086539,-500.0,0.00023095,9]
[334127124,1722789086548,-500.0,0.00023095,9]
[334127125,1722789086558,-500.0,0.00023095,9]
[334127126,1722789086567,-500.0,0.00023095,9]
[334127127,1722789086576,-500.0,0.00023095,9]
[334127128,1722789086585,-500.0,0.00023095,9]
[334127129,1722789086595,-500.0,0.00023095,9]
[334127130,1722789086604,-500.0,0.00023095,9]
[334127131,1722789086613,-500.0,0.00023095,9]
[334127132,1722789086623,-528.21,0.00023095,9]
[334127133,1722789086632,-500.0,0.00023095,9]
[334127134,1722789086641,-500.0,0.00023095,9]
[334127135,1722789086650,-500.0,0.00023095,9]
[334127136,1722789086659,-500.0,0.00023095,9]
[334127137,1722789086669,-500.0,0.00023095,9]
[334127138,1722789086678,-500.0,0.00023095,9]
[334127139,1722789086687,-500.0,0.00023095,9]
[334127140,1722789086697,-500.0,0.00023095,9]
[334127141,1722789086706,-310.14,0.00023095,9]
[334127142,1722789086715,-503.50021682,0.00023095,9]
[334127143,1722789086725,-500.0,0.00023095,9]
[334127144,1722789086734,-548.00010278,0.00023095,9]
[334127145,1722789086743,-500.0,0.00023095,9]
[334127146,1722789086752,-569.32,0.00023095,9]
[334127147,1722789086762,-500.0,0.00023095,9]
[334127148,1722789086771,-500.0,0.00023095,9]
[334127149,1722789086784,-500.0,0.00023095,9]
[334127150,1722789086793,-561.48,0.00023095,9]
[334127151,1722789086802,-151.0,0.00023095,7]
[334127152,1722789086811,-523.37,0.00023095,9]
[334127153,1722789086821,-500.0,0.00023095,9]
[334127154,1722789086830,-500.0,0.00023095,9]
[334127155,1722789086839,-500.0,0.00023095,9]
[334127156,1722789086849,-500.0,0.00023095,9]
[334127157,1722789086858,-448.4319768,0.00023095,9]
[334127158,1722789086869,-500.0,0.00023095,9]
[334127159,1722789086878,-500.0,0.00023095,9]
[334127160,1722789086887,-500.0,0.00023095,9]
[334127161,1722789086896,-500.0,0.00023095,9]
[334127162,1722789086905,-238.22220028,0.00023095,9]
[334127163,1722789086914,-500.0,0.00023095,9]
[334127164,1722789086923,-601.55,0.00023095,9]
[334127165,1722789086932,-500.0,0.00023095,9]
[334127166,1722789086942,-151.0,0.00023095,7]
[334127167,1722789086951,-151.0,0.00023095,7]
[334127168,1722789086960,-500.0,0.00023095,9]
[334127169,1722789086970,-500.0,0.00023095,9]
[334127170,1722789086979,-500.0,0.00023095,9]
[334127171,1722789086988,-500.0,0.00023095,9]
[334127172,1722789086997,-351.5,0.00023095,9]
[334127173,1722789087007,-500.0,0.00023095,9]
[334127174,1722789087016,-6008.74,0.00023095,9]
[334127175,1722789087029,-500.0,0.00023095,9]
[334127176,1722789087039,-363.09,0.00023095,9]
[334127177,1722789087048,-500.0,0.00023095,9]
[334127178,1722789087058,-500.0,0.00023095,9]
[334127179,1722789087067,-330.00552999,0.00023095,9]
[334127180,1722789087077,-500.0,0.00023095,9]
[334127181,1722789087086,-500.0,0.00023095,9]
[334127182,1722789087095,-500.0,0.00023095,9]
[334127183,1722789087104,-500.0,0.00023095,9]
[334127184,1722789087114,-500.0,0.00023095,9]
[334127185,1722789087124,-2039.61,0.00023095,9]
[334127186,1722789087133,-500.0,0.00023095,9]
[334127187,1722789087143,-500.0,0.00023095,9]
[334127188,1722789087152,-500.0,0.00023095,9]
[334127189,1722789087165,-3717.54,0.00023095,9]
[334127190,1722789087174,-500.0,0.00023095,9]
[334127191,1722789087184,-500.0,0.00023095,9]
[334127192,1722789087194,-500.0,0.00023095,9]
[334127193,1722789087203,-884.84,0.00023095,9]
[334127194,1722789087215,-500.0,0.00023095,9]
[334127195,1722789087224,-500.0,0.00023095,9]
[334127196,1722789087232,-500.0,0.00023095,9]
[334127197,1722789087243,-500.0,0.00023095,9]
[334127198,1722789087254,-151.0,0.00023095,7]
[334127199,1722789087484,-151.0,0.00023095,7]
[334127200,1722789087495,-500.0,0.00023095,9]
[334127201,1722789087504,-523.65,0.00023095,9]
[334127202,1722789087514,-500.0,0.00023095,9]
[334127203,1722789087523,-151.0,0.00023095,7]
[334127204,1722789087539,-151.0,0.00023095,7]
[334127205,1722789087549,-580.87,0.00023095,9]
[334127206,1722789087558,-3092.5,0.00023095,9]
[334127207,1722789087567,-500.0,0.00023095,9]
[334127208,1722789087577,-500.0,0.00023095,9]
[334127209,1722789087587,-1380.41,0.00023095,9]
[334127210,1722789087596,-500.0,0.00023095,9]
[334127211,1722789087605,-1525.48,0.00023095,9]
[334127212,1722789087615,-500.0,0.00023095,9]
[334127213,1722789087624,-500.0,0.00023095,9]
[334127214,1722789087633,-500.0,0.00023095,9]
[334127215,1722789087642,-500.0,0.00023095,9]
[334127216,1722789087652,-500.0,0.00023095,9]
[334127217,1722789087661,-500.0,0.00023095,9]
[334127218,1722789087670,-735.29,0.00023095,9]
[334127219,1722789087680,-151.0,0.00023095,7]
[334127220,1722789087689,-500.0,0.00023095,9]
[334127221,1722789087700,-151.0,0.00023095,7]
[334127222,1722789087709,-500.0,0.00023095,9]
[334127223,1722789087719,-500.0,0.00023095,9]
[334127224,1722789087729,-500.0,0.00023095,9]
[334127225,1722789087740,-500.0,0.00023095,9]
[334127226,1722789087750,-1651.73,0.00023095,9]
[334127227,1722789087760,-500.0,0.00023095,9]
[334127228,1722789087770,-1424.91,0.00023095,9]
[334127229,1722789087783,-500.0,0.00023095,9]
[334127230,1722789087793,-638.31,0.00023095,9]
[334127231,1722789087802,-500.0,0.00023095,9]
[334127232,1722789087811,-444.1743463,0.00023095,9]
[334127233,1722789087820,-511.18,0.00023095,9]
[334127234,1722789087829,-500.0,0.00023095,9]
[334127235,1722789087839,-9291.65,0.00023095,9]
[334127236,1722789087848,-500.0,0.00023095,9]
[334127237,1722789087858,-500.0,0.00023095,9]
[334127238,1722789087867,-241.72819308,0.00023095,9]
[334127239,1722789087877,-500.0,0.00023095,9]
[334127240,1722789087886,-500.0,0.00023095,9]
[334127241,1722789087895,-331.74777867,0.00023095,9]
[334127242,1722789087905,-1800.64,0.00023095,9]
[334127243,1722789087914,-668.08,0.00023095,9]
[334127244,1722789087922,-500.0,0.00023095,9]
[334127245,1722789087932,-1076.82,0.00023095,9]
[334127246,1722789087941,-500.0,0.00023095,9]
[334127247,1722789087951,-1604.95,0.00023095,9]
[334127248,1722789087960,-696.11,0.00023095,9]
[334127249,1722789087971,-840.83,0.00023095,9]
[334127250,1722789087980,-734.28,0.00023095,9]
[334127251,1722789087990,-500.0,0.00023095,9]
[334127252,1722789087999,-500.0,0.00023095,9]
[334127253,1722789088009,-500.0,0.00023095,9]
[334127254,1722789088018,-500.0,0.00023095,9]
[334127255,1722789088031,-500.0,0.00023095,9]
[334127256,1722789088042,-500.0,0.00023095,9]
[334127257,1722789088051,-580.56,0.00023095,9]
[334127258,1722789088061,-1654.23,0.00023095,9]
[334127259,1722789088070,-500.0,0.00023095,9]
[334127260,1722789088080,-500.0,0.00023095,9]
[334127261,1722789088089,-500.0,0.00023095,9]
[334127262,1722789088099,-728.39,0.00023095,9]
[334127263,1722789088108,-932.72,0.00023095,9]
[334127264,1722789088118,-500.0,0.00023095,9]
[334127265,1722789088127,-500.0,0.00023095,9]
[334127266,1722789088136,-716.95,0.00023095,9]
[334127267,1722789088146,-500.77521233,0.00023095,9]
[334127268,1722789088156,-509.23,0.00023095,9]
[334127269,1722789088166,-500.0,0.00023095,9]
[334127270,1722789088178,-652.16,0.00023095,9]
[334127271,1722789088188,-500.0,0.00023095,9]
[334127272,1722789088197,-500.0,0.00023095,9]
[334127273,1722789088207,-500.0,0.00023095,9]
[334127274,1722789088216,-1421.84,0.00023095,9]
[334127275,1722789088226,-500.0,0.00023095,9]
[334127276,1722789088235,-1831.37,0.00023095,9]
[334127277,1722789088247,-500.0,0.00023095,9]
[334127278,1722789088256,-9159.33,0.00023095,9]
[334127279,1722789088266,-500.0,0.00023095,9]
[334127280,1722789088277,-500.0,0.00023095,9]
[334127281,1722789088287,-610.20323419,0.00023095,9]
[334127282,1722789088296,-24340.79,0.00023095,9]
[334127283,1722789088305,-500.0,0.00023095,9]
[334127284,1722789088315,-500.0,0.00023095,9]
[334127285,1722789088324,-500.0,0.00023095,9]
[334127286,1722789088333,-500.0,0.00023095,9]
[334127287,1722789088343,-500.0,0.00023095,9]
[334127288,1722789088352,-500.0,0.00023095,9]
[334127289,1722789088362,-500.0,0.00023095,9]
[334127290,1722789088371,-523.84725931,0.00023095,9]
[334127291,1722789088381,-500.0,0.00023095,9]
[334127292,1722789088390,-500.0,0.00023095,9]
[334127293,1722789088400,-500.0,0.00023095,9]
[334127294,1722789088409,-500.0,0.00023095,9]
[334127295,1722789088419,-696.26,0.00023095,9]
[334127296,1722789088428,-500.0,0.00023095,9]
[334127297,1722789088437,-2392.07,0.00023095,9]
[334127298,1722789088447,-400.0,0.00023095,9]
[334127299,1722789088457,-562.11925113,0.00023095,9]
[334127300,1722789088466,-505.00264712,0.00023095,9]
[334127301,1722789088476,-6117.15,0.00023095,9]
[334127302,1722789088485,-500.0,0.00023095,9]
[334127303,1722789088495,-500.0,0.00023095,9]
[334127304,1722789088504,-500.0,0.00023095,9]
[334127305,1722789088514,-500.0,0.00023095,9]
[334127306,1722789088523,-500.0,0.00023095,9]
[334127307,1722789088536,-1134.1,0.00023095,9]
[334127308,1722789088545,-871.99,0.00023095,9]
[334127309,1722789088555,-2627.33,0.00023095,9]
[334127310,1722789088564,-500.0,0.00023095,9]
[334127311,1722789088573,-771.73,0.00023095,9]
[334127312,1722789088582,-500.0,0.00023095,9]
[334127313,1722789088591,-500.0,0.00023095,9]
[334127314,1722789088601,-544.49,0.00023095,9]
[334127315,1722789088610,-500.0,0.00023095,9]
[334127316,1722789088619,-500.0,0.00023095,9]
[334127317,1722789088628,-6002.83,0.00023095,9]
[334127318,1722789088637,-500.0,0.00023095,9]
[334127319,1722789088646,-500.0,0.00023095,9]
[334127320,1722789088655,-791.38,0.00023095,9]
[334127321,1722789088664,-500.0,0.00023095,9]
[334127322,1722789088673,-11888.09,0.00023095,9]
[334127323,1722789088683,-500.0,0.00023095,9]
[334127324,1722789088692,-500.0,0.00023095,9]
[334127325,1722789088701,-500.0,0.00023095,9]
[334127326,1722789088710,-500.0,0.00023095,9]
[334127327,1722789088719,-501.40521367,0.00023095,9]
[334127328,1722789088728,-500.0,0.00023095,9]
[334127329,1722789088738,-944.27,0.00023095,9]
[334127330,1722789088747,-1585.57,0.00023095,9]
[334127331,1722789088756,-4038.41,0.00023095,9]
[334127332,1722789088765,-608.31,0.00023095,9]
[334127333,1722789088777,-431.38,0.00023095,9]
[334127334,1722789088786,-500.0,0.00023095,9]
[334127335,1722789088795,-1194.13,0.00023095,9]
[334127336,1722789088804,-550.8373312,0.00023095,9]
[334127337,1722789088813,-1646.59,0.00023095,9]
[334127338,1722789088823,-949.11,0.00023095,9]
[334127339,1722789088832,-500.0,0.00023095,9]
[334127340,1722789088841,-500.0,0.00023095,9]
[334127341,1722789088850,-520.21048127,0.00023095,9]
[334127342,1722789088859,-500.0,0.00023095,9]
[334127343,1722789088869,-2124.99,0.00023095,9]
[334127344,1722789088878,-1277.47,0.00023095,9]
[334127345,1722789088887,-500.0,0.00023095,9]
[334127346,1722789088896,-165.76,0.00023095,9]
[334127347,1722789088905,-500.0,0.00023095,9]
[334127348,1722789088915,-618.75,0.00023095,9]
[334127349,1722789088924,-151.0,0.00023095,7]
[334127350,1722789088934,-2060.41,0.00023095,9]
[334127351,1722789088943,-223.724224,0.00023095,7]
[334127352,1722789088953,-5462.19,0.00023095,9]
[334127353,1722789088962,-1732.64,0.00023095,9]
[334127354,1722789088971,-152.32523705,0.00023095,9]
[334127355,1722789088980,-500.0,0.00023095,9]
[334127356,1722789088990,-500.0,0.00023095,9]
[334127357,1722789088999,-500.0,0.00023095,9]
[334127358,1722789089008,-500.0,0.00023095,9]
[334127359,1722789089017,-500.0,0.00023095,9]
[334127360,1722789089029,-1091.18,0.00023095,9]
[334127361,1722789089038,-500.0,0.00023095,9]
[334127362,1722789089048,-500.0,0.00023095,9]
[334127363,1722789089057,-544.49,0.00023095,9]
[334127364,1722789089066,-500.0,0.00023095,9]
[334127365,1722789089076,-564.87,0.00023095,9]
[334127366,1722789089085,-15172.23,0.00023095,9]
[334127367,1722789089095,-4452.48,0.00023095,9]
[334127368,1722789089104,-500.0,0.00023095,9]
[334127369,1722789089113,-851.31,0.00023095,9]
[334127370,1722789089122,-500.0,0.00023095,9]
[334127371,1722789089132,-584.6,0.00023095,9]
[334127372,1722789089141,-1441.44,0.00023095,9]
[334127373,1722789089150,-2716.36,0.00023095,9]
[334127374,1722789089164,-500.0,0.00023095,9]
[334127375,1722789089173,-500.0,0.00023095,9]
[334127376,1722789089182,-1571.23,0.00023095,9]
[334127377,1722789089191,-574.32,0.00023095,9]
[334127378,1722789089201,-500.0,0.00023095,9]
[334127379,1722789089210,-1778.849832,0.00023095,7]
[334127380,1722789089219,-500.0,0.00023095,9]
[334127381,1722789089229,-500.0,0.00023095,9]
[334127382,1722789089240,-500.0,0.00023095,9]
[334127383,1722789089250,-1021.22,0.00023095,9]
[334127384,1722789089260,-703.47,0.00023095,9]
[334127385,1722789089269,-1778.849832,0.00023095,7]
[334127386,1722789089282,-500.0,0.00023095,9]
[334127387,1722789089291,-1291.6,0.00023095,9]
[334127388,1722789089300,-1535.24,0.00023095,9]
[334127389,1722789089309,-763.08,0.00023095,9]
[334127390,1722789089318,-5391.24,0.00023095,9]
[334127391,1722789089327,-1354.84,0.00023095,9]
[334127392,1722789089336,-584.33,0.00023095,9]
[334127393,1722789089345,-500.0,0.00023095,9]
[334127394,1722789089355,-709.22,0.00023095,9]
[334127395,1722789089364,-500.0,0.00023095,9]
[334127396,1722789089373,-2713.37,0.00023095,9]
[334127397,1722789089383,-253.193013,0.00023095,7]
[334127398,1722789089393,-500.0,0.00023095,9]
[334127399,1722789089402,-2249.61,0.00023095,9]
[334127400,1722789089411,-995.02,0.00023095,9]
[334127401,1722789089421,-3893.64,0.00023095,9]
[334127402,1722789089430,-500.0,0.00023095,9]
[334127403,1722789089440,-500.0,0.00023095,9]
[334127404,1722789089449,-500.0,0.00023095,9]
[334127405,1722789089459,-500.0,0.00023095,9]
[334127406,1722789089469,-500.0,0.00023095,9]
[334127407,1722789089478,-605.15,0.00023095,9]
[334127408,1722789089494,-892.75,0.00023095,9]
[334127409,1722789089504,-1131.9,0.00023095,9]
[334127410,1722789089513,-2837.07,0.00023095,9]
[334127411,1722789089523,-500.0,0.00023095,9]
[334127412,1722789089539,-500.0,0.00023095,9]
[334127413,1722789089553,-1059.61,0.00023095,9]
[334127414,1722789089562,-253.193013,0.00023095,7]
[334127415,1722789089571,-901.69,0.00023095,9]
[334127416,1722789089581,-500.0,0.00023095,9]
[334127417,1722789089591,-594.16036285,0.00023095,9]
[334127418,1722789089601,-500.0,0.00023095,9]
[334127419,1722789089610,-873.69,0.00023095,9]
[334127420,1722789089622,-500.0,0.00023095,9]
[334127421,1722789089632,-500.0,0.00023095,9]
[334127422,1722789089642,-500.0,0.00023095,9]
[334127423,1722789089651,-1120.25,0.00023095,9]
[334127424,1722789089661,-500.0,0.00023095,9]
[334127425,1722789089669,-500.0,0.00023095,9]
[334127426,1722789089678,-500.0,0.00023095,9]
[334127427,1722789089687,-1475.32,0.00023095,9]
[334127428,1722789089696,-6849.94,0.00023095,9]
[334127429,1722789089706,-500.0,0.00023095,9]
[334127430,1722789089715,-2285.11,0.00023095,9]
[334127431,1722789089724,-1520.63,0.00023095,9]
[334127432,1722789089732,-645.98,0.00023095,9]
[334127433,1722789089742,-1055.9,0.00023095,9]
[334127434,1722789089751,-500.0,0.00023095,9]
[334127435,1722789089760,-500.0,0.00023095,9]
[334127436,1722789089771,-537.63697333,0.00023095,9]
[334127437,1722789089783,-500.0,0.00023095,9]
[334127438,1722789089793,-500.0,0.00023095,9]
[334127439,1722789089802,-4923.42,0.00023095,9]
[334127440,1722789089812,-500.0,0.00023095,9]
[334127441,1722789089822,-151.0,0.00023095,7]
[334127442,1722789089831,-500.0,0.00023095,9]
[334127443,1722789089841,-1211.89,0.00023095,9]
[334127444,1722789089850,-1860.21,0.00023095,9]
[334127445,1722789089859,-500.0,0.00023095,9]
[334127446,1722789089868,-500.0,0.00023095,9]
[334127447,1722789089878,-2498.66,0.00023095,9]
[334127448,1722789089887,-151.0,0.00023095,7]
[334127449,1722789089896,-500.0,0.00023095,9]
[334127450,1722789089908,-500.0,0.00023095,9]
[334127451,1722789089918,-500.0,0.00023095,9]
[334127452,1722789089927,-723.93,0.00023095,9]
[334127453,1722789089936,-2543.95,0.00023095,9]
[334127454,1722789089945,-500.0,0.00023095,9]
[334127455,1722789089954,-781.57,0.00023095,9]
[334127456,1722789089963,-500.0,0.00023095,9]
[334127457,1722789089972,-1321.62,0.00023095,9]
[334127458,1722789089982,-1395.06,0.00023095,9]
[334127459,1722789089991,-1624.5,0.00023095,9]
[334127460,1722789090000,-500.0,0.00023095,9]
[334127461,1722789090010,-500.0,0.00023095,9]
[334127462,1722789090019,-1415.76,0.00023095,9]
[334127463,1722789090030,-1413.44,0.00023095,9]
[334127464,1722789090039,-500.0,0.00023095,9]
[334127465,1722789090049,-500.0,0.00023095,9]
[334127466,1722789090058,-620.19128825,0.00023095,9]
[334127467,1722789090067,-500.0,0.00023095,9]
[334127468,1722789090076,-1456.38,0.00023095,9]
[334127469,1722789090085,-1000.0,0.00023095,9]
[334127470,1722789090095,-1356.63,0.00023095,9]
[334127471,1722789090104,-500.0,0.00023095,9]
[334127472,1722789090114,-911.83,0.00023095,9]
[334127473,1722789090123,-500.0,0.00023095,9]
[334127474,1722789090132,-900.99,0.00023095,9]
[334127475,1722789090142,-500.0,0.00023095,9]
[334127476,1722789090152,-500.0,0.00023095,9]
[334127477,1722789090161,-1747.36,0.00023095,9]